[Event "Titled Tuesday Blitz August 09 Early 2022"]
[White "Mohammed, Dilshad"]
[Black "Omelja, Artem"]
[WhiteFideId "5050421"]
[BlackFideId "14119846"]
[WhiteElo "2102"]
[BlackElo "2382"]
[Result "0-1"]
[Round "08"]
[TimeControl "180+1"]
[Date "2022.08.09"]
[WhiteClock "0:00:37"]
[BlackClock "0:00:49"]

1. Nf3 {[%clk 0:02:57]}  d5 {[%clk 0:02:59]} 2. c4 {[%clk 0:02:57]}  c6 {[%clk 0:02:58]} 3. e3 {[%clk 0:02:58]}  Nf6 {[%clk 0:02:57]} 4. Nc3 {[%clk 0:02:59]}  e6 {[%clk 0:02:57]} 5. d4 {[%clk 0:02:58]}  Nbd7 {[%clk 0:02:55]} 6. c5 {[%clk 0:02:58]}  b6 {[%clk 0:02:52]} 7. cxb6 {[%clk 0:02:57]}  axb6 {[%clk 0:02:50]} 8. Bd3 {[%clk 0:02:58]}  Bd6 {[%clk 0:02:50]} 9. O-O {[%clk 0:02:58]}  O-O {[%clk 0:02:50]} 10. e4 {[%clk 0:02:58]}  c5 {[%clk 0:02:29]} 11. e5 {[%clk 0:02:52]}  cxd4 {[%clk 0:02:28]} 12. exf6 {[%clk 0:02:49]}  dxc3 {[%clk 0:02:29]} 13. fxg7 {[%clk 0:02:43]}  Re8 {[%clk 0:02:08]} 14. bxc3 {[%clk 0:02:42]}  Nc5 {[%clk 0:01:59]} 15. Bxh7+ {[%clk 0:02:40]}  Kxh7 {[%clk 0:01:59]} 16. Ng5+ {[%clk 0:02:41]}  Kxg7 {[%clk 0:01:59]} 17. Qh5 {[%clk 0:02:36]}  Qf6 {[%clk 0:01:55]} 18. Qh7+ {[%clk 0:01:45]}  Kf8 {[%clk 0:01:54]} 19. f4 {[%clk 0:01:42]}  Ke7 {[%clk 0:01:43]} 20. f5 {[%clk 0:01:28]}  Rh8 {[%clk 0:01:39]} 21. fxe6 {[%clk 0:01:11]}  Qxf1+ {[%clk 0:01:36]} 22. Kxf1 {[%clk 0:01:10]}  Rxh7 {[%clk 0:01:37]} 23. Nxh7 {[%clk 0:01:10]}  Nxe6 {[%clk 0:01:29]} 24. Be3 {[%clk 0:01:06]}  Ba6+ {[%clk 0:01:24]} 25. Kg1 {[%clk 0:01:05]}  Bc5 {[%clk 0:01:03]} 26. Bxc5+ {[%clk 0:00:58]}  bxc5 {[%clk 0:01:04]} 27. Re1 {[%clk 0:00:58]}  Rg8 {[%clk 0:01:00]} 28. h4 {[%clk 0:00:58]}  f6 {[%clk 0:00:56]} 29. h5 {[%clk 0:00:44]}  Kf7 {[%clk 0:00:51]} 30. Rf1 {[%clk 0:00:37]}  Bxf1 {[%clk 0:00:49]} 0-1


[Site "https://www.chess.com"]

[Event "Titled Tuesday Blitz August 09 Early 2022"]
[White "Moreira, Ronaldo Alonso"]
[Black "Legenia, Artem"]
[WhiteFideId "2110547"]
[BlackFideId "14136945"]
[WhiteElo "2037"]
[BlackElo "1936"]
[Result "0-1"]
[Round "08"]
[TimeControl "180+1"]
[Date "2022.08.09"]
[WhiteClock "0:01:40"]
[BlackClock "0:02:37"]

1. d4 {[%clk 0:03:00]}  d5 {[%clk 0:02:58]} 2. c4 {[%clk 0:03:01]}  e6 {[%clk 0:02:58]} 3. Nc3 {[%clk 0:03:00]}  c5 {[%clk 0:02:58]} 4. e3 {[%clk 0:02:45]}  Nf6 {[%clk 0:02:57]} 5. Nf3 {[%clk 0:02:41]}  dxc4 {[%clk 0:02:58]} 6. Bxc4 {[%clk 0:02:41]}  cxd4 {[%clk 0:02:58]} 7. exd4 {[%clk 0:02:41]}  a6 {[%clk 0:02:58]} 8. O-O {[%clk 0:02:39]}  Bb4 {[%clk 0:02:55]} 9. Bg5 {[%clk 0:02:35]}  Bxc3 {[%clk 0:02:49]} 10. bxc3 {[%clk 0:02:34]}  O-O {[%clk 0:02:50]} 11. Qe2 {[%clk 0:02:20]}  b5 {[%clk 0:02:47]} 12. Bd3 {[%clk 0:02:18]}  Bb7 {[%clk 0:02:47]} 13. Ne5 {[%clk 0:02:13]}  Nbd7 {[%clk 0:02:47]} 14. Nxd7 {[%clk 0:02:08]}  Qxd7 {[%clk 0:02:45]} 15. Bxf6 {[%clk 0:02:08]}  gxf6 {[%clk 0:02:45]} 16. Qh5 {[%clk 0:01:56]}  f5 {[%clk 0:02:45]} 17. Rae1 {[%clk 0:01:53]}  Qd5 {[%clk 0:02:38]} 18. Re3 {[%clk 0:01:40]}  Qxg2# {[%clk 0:02:37]} 0-1


[Site "https://www.chess.com"]

[Event "Titled Tuesday Blitz August 09 Early 2022"]
[White "Najdin, Danil"]
[Black "Mouhamad, Joachim"]
[WhiteFideId "4172426"]
[BlackFideId "656410"]
[WhiteElo "2240"]
[BlackElo "2147"]
[Result "1-0"]
[Round "08"]
[TimeControl "180+1"]
[Date "2022.08.09"]
[WhiteClock "0:00:34"]
[BlackClock "0:00:18"]

1. Nc3 {[%clk 0:02:48]}  d5 {[%clk 0:02:55]} 2. e4 {[%clk 0:02:47]}  c6 {[%clk 0:02:45]} 3. d4 {[%clk 0:02:44]}  dxe4 {[%clk 0:02:42]} 4. Nxe4 {[%clk 0:02:45]}  Bf5 {[%clk 0:02:39]} 5. Ng3 {[%clk 0:02:44]}  Bg6 {[%clk 0:02:39]} 6. Nf3 {[%clk 0:02:44]}  Nd7 {[%clk 0:02:38]} 7. h4 {[%clk 0:02:44]}  h6 {[%clk 0:02:38]} 8. h5 {[%clk 0:02:45]}  Bh7 {[%clk 0:02:39]} 9. Bd3 {[%clk 0:02:46]}  Bxd3 {[%clk 0:02:38]} 10. Qxd3 {[%clk 0:02:46]}  Ngf6 {[%clk 0:02:38]} 11. Bd2 {[%clk 0:02:44]}  e6 {[%clk 0:02:38]} 12. O-O-O {[%clk 0:02:44]}  Be7 {[%clk 0:02:38]} 13. Ne4 {[%clk 0:02:36]}  Nxe4 {[%clk 0:02:37]} 14. Qxe4 {[%clk 0:02:37]}  Nf6 {[%clk 0:02:38]} 15. Qd3 {[%clk 0:02:35]}  Qd5 {[%clk 0:02:36]} 16. c4 {[%clk 0:02:29]}  Qe4 {[%clk 0:02:35]} 17. Be3 {[%clk 0:02:28]}  Qxd3 {[%clk 0:02:31]} 18. Rxd3 {[%clk 0:02:27]}  Ng4 {[%clk 0:02:31]} 19. Kc2 {[%clk 0:02:16]}  Nxe3+ {[%clk 0:02:31]} 20. fxe3 {[%clk 0:02:13]}  O-O-O {[%clk 0:02:12]} 21. e4 {[%clk 0:02:09]}  Bf6 {[%clk 0:02:09]} 22. e5 {[%clk 0:02:07]}  Be7 {[%clk 0:02:06]} 23. Nd2 {[%clk 0:02:07]}  f5 {[%clk 0:02:05]} 24. exf6 {[%clk 0:02:02]}  Bxf6 {[%clk 0:02:05]} 25. Nf3 {[%clk 0:02:02]}  Rhg8 {[%clk 0:02:02]} 26. Re1 {[%clk 0:01:59]}  Rde8 {[%clk 0:02:01]} 27. Rde3 {[%clk 0:01:52]}  Kd7 {[%clk 0:02:01]} 28. Ne5+ {[%clk 0:01:49]}  Bxe5 {[%clk 0:02:00]} 29. Rxe5 {[%clk 0:01:42]}  g6 {[%clk 0:02:00]} 30. R1e2 {[%clk 0:01:42]}  gxh5 {[%clk 0:01:57]} 31. Rxh5 {[%clk 0:01:43]}  Rg6 {[%clk 0:01:57]} 32. a4 {[%clk 0:01:24]}  Rf8 {[%clk 0:01:52]} 33. a5 {[%clk 0:01:21]}  Rf4 {[%clk 0:01:49]} 34. Kd3 {[%clk 0:01:18]}  Rf1 {[%clk 0:01:45]} 35. a6 {[%clk 0:01:08]}  bxa6 {[%clk 0:01:44]} 36. Ra5 {[%clk 0:01:08]}  Rd1+ {[%clk 0:01:42]} 37. Kc3 {[%clk 0:01:02]}  Rg3+ {[%clk 0:01:41]} 38. Kb4 {[%clk 0:01:01]}  Rxd4 {[%clk 0:01:40]} 39. Rxa6 {[%clk 0:01:01]}  Kd6 {[%clk 0:01:34]} 40. Rxa7 {[%clk 0:00:58]}  c5+ {[%clk 0:01:34]} 41. Kb5 {[%clk 0:00:51]}  Rb3+ {[%clk 0:01:33]} 42. Ka4 {[%clk 0:00:51]}  Rb4+ {[%clk 0:01:31]} 43. Ka3 {[%clk 0:00:52]}  Rbxc4 {[%clk 0:01:21]} 44. Ra6+ {[%clk 0:00:47]}  Kd5 {[%clk 0:01:17]} 45. Rexe6 {[%clk 0:00:43]}  Rd3+ {[%clk 0:00:51]} 46. Ka2 {[%clk 0:00:40]}  Rcd4 {[%clk 0:00:23]} 47. Rxh6 {[%clk 0:00:37]}  Rg3 {[%clk 0:00:22]} 48. Rh5+ {[%clk 0:00:37]}  Kc4 {[%clk 0:00:21]} 49. Ra4+ {[%clk 0:00:34]}  Kd3 {[%clk 0:00:18]} 50. Ra3+ {[%clk 0:00:34]} 1-0


[Site "https://www.chess.com"]

[Event "Titled Tuesday Blitz August 09 Early 2022"]
[White "Niyazgulova, Marina"]
[Black "Bristy, Mukherjee"]
[WhiteFideId "24142573"]
[BlackFideId "25077325"]
[WhiteElo "1986"]
[BlackElo "1661"]
[Result "1-0"]
[Round "08"]
[TimeControl "180+1"]
[Date "2022.08.09"]
[WhiteClock "0:00:30"]
[BlackClock "0:01:31"]

1. d4 {[%clk 0:03:00]}  f5 {[%clk 0:02:59]} 2. c4 {[%clk 0:02:58]}  Nf6 {[%clk 0:02:59]} 3. Nc3 {[%clk 0:02:57]}  e6 {[%clk 0:03:00]} 4. g3 {[%clk 0:02:51]}  Be7 {[%clk 0:03:00]} 5. Bg2 {[%clk 0:02:51]}  d6 {[%clk 0:03:00]} 6. Nf3 {[%clk 0:02:51]}  O-O {[%clk 0:03:01]} 7. O-O {[%clk 0:02:52]}  Qe8 {[%clk 0:03:01]} 8. Bf4 {[%clk 0:02:46]}  Nc6 {[%clk 0:02:55]} 9. Re1 {[%clk 0:02:43]}  Ne4 {[%clk 0:02:46]} 10. h4 {[%clk 0:02:32]}  Nxc3 {[%clk 0:02:38]} 11. bxc3 {[%clk 0:02:30]}  Bf6 {[%clk 0:02:38]} 12. e4 {[%clk 0:02:21]}  fxe4 {[%clk 0:02:32]} 13. Rxe4 {[%clk 0:02:21]}  Qg6 {[%clk 0:02:33]} 14. Qe2 {[%clk 0:02:09]}  e5 {[%clk 0:02:20]} 15. dxe5 {[%clk 0:02:04]}  Bf5 {[%clk 0:02:20]} 16. Re3 {[%clk 0:02:00]}  dxe5 {[%clk 0:02:20]} 17. Nxe5 {[%clk 0:01:57]}  Nxe5 {[%clk 0:02:18]} 18. Bxe5 {[%clk 0:01:57]}  Bxe5 {[%clk 0:02:18]} 19. Rxe5 {[%clk 0:01:57]}  Bd3 {[%clk 0:02:19]} 20. Qe3 {[%clk 0:01:51]}  Bxc4 {[%clk 0:02:15]} 21. Bxb7 {[%clk 0:01:51]}  Rab8 {[%clk 0:02:14]} 22. Bd5+ {[%clk 0:01:16]}  Bxd5 {[%clk 0:02:12]} 23. Rxd5 {[%clk 0:01:17]}  Rb2 {[%clk 0:01:51]} 24. Rd2 {[%clk 0:01:16]}  Rxd2 {[%clk 0:01:37]} 25. Qxd2 {[%clk 0:01:16]}  h6 {[%clk 0:01:37]} 26. Re1 {[%clk 0:01:14]}  Rf3 {[%clk 0:01:36]} 27. Qd5+ {[%clk 0:00:39]}  Qf7 {[%clk 0:01:34]} 28. Re8+ {[%clk 0:00:31]}  Kh7 {[%clk 0:01:34]} 29. Qe4+ {[%clk 0:00:31]}  g6 {[%clk 0:01:31]} 30. Re7 {[%clk 0:00:30]} 1-0


[Site "https://www.chess.com"]

[Event "Titled Tuesday Blitz August 09 Early 2022"]
[White "Ovezdurdyyeva, Jemal"]
[Black "Kiseljova, Marya"]
[WhiteFideId "14001888"]
[BlackFideId "4155009"]
[WhiteElo "1946"]
[BlackElo "1697"]
[Result "0-1"]
[Round "08"]
[TimeControl "180+1"]
[Date "2022.08.09"]
[WhiteClock "0:01:48"]
[BlackClock "0:00:04"]

1. e4 {[%clk 0:03:00]}  c5 {[%clk 0:03:00]} 2. Nf3 {[%clk 0:02:59]}  Nc6 {[%clk 0:03:00]} 3. c3 {[%clk 0:02:59]}  Nf6 {[%clk 0:02:59]} 4. Bd3 {[%clk 0:02:58]}  e5 {[%clk 0:02:24]} 5. O-O {[%clk 0:02:57]}  Be7 {[%clk 0:02:24]} 6. Bc2 {[%clk 0:02:55]}  d5 {[%clk 0:02:22]} 7. exd5 {[%clk 0:02:51]}  Nxd5 {[%clk 0:02:23]} 8. d4 {[%clk 0:02:51]}  cxd4 {[%clk 0:02:20]} 9. cxd4 {[%clk 0:02:51]}  exd4 {[%clk 0:01:59]} 10. Nxd4 {[%clk 0:02:47]}  Nxd4 {[%clk 0:01:59]} 11. Qxd4 {[%clk 0:02:46]}  O-O {[%clk 0:01:46]} 12. Rd1 {[%clk 0:02:41]}  Be6 {[%clk 0:01:36]} 13. Qe4 {[%clk 0:02:35]}  g6 {[%clk 0:01:19]} 14. Bb3 {[%clk 0:02:20]}  Nf6 {[%clk 0:01:06]} 15. Qxb7 {[%clk 0:02:19]}  Qe8 {[%clk 0:00:46]} 16. Bxe6 {[%clk 0:02:18]}  fxe6 {[%clk 0:00:46]} 17. Bh6 {[%clk 0:02:16]}  Rf7 {[%clk 0:00:39]} 18. Qb3 {[%clk 0:02:14]}  Ng4 {[%clk 0:00:34]} 19. Be3 {[%clk 0:02:09]}  Rb8 {[%clk 0:00:26]} 20. Qxe6 {[%clk 0:02:06]}  Nxe3 {[%clk 0:00:18]} 21. Qxe3 {[%clk 0:02:05]}  Rxb2 {[%clk 0:00:16]} 22. Nc3 {[%clk 0:02:04]}  Rfxf2 {[%clk 0:00:12]} 23. Qxf2 {[%clk 0:01:58]}  Rxf2 {[%clk 0:00:10]} 24. Kxf2 {[%clk 0:01:59]}  Bc5+ {[%clk 0:00:09]} 25. Kf1 {[%clk 0:01:57]}  Qf7+ {[%clk 0:00:08]} 26. Ke2 {[%clk 0:01:56]}  Qf2+ {[%clk 0:00:07]} 27. Kd3 {[%clk 0:01:57]}  Qe3+ {[%clk 0:00:06]} 28. Kc4 {[%clk 0:01:57]}  Bb6 {[%clk 0:00:04]} 29. Nd5 {[%clk 0:01:49]}  Qc5+ {[%clk 0:00:03]} 30. Kb3 {[%clk 0:01:49]}  Qb5+ {[%clk 0:00:03]} 31. Kc2 {[%clk 0:01:49]}  Qc4+ {[%clk 0:00:03]} 32. Kd2 {[%clk 0:01:49]}  Qxd5+ {[%clk 0:00:03]} 33. Ke2 {[%clk 0:01:49]}  Qe4+ {[%clk 0:00:04]} 34. Kd2 {[%clk 0:01:49]}  Qe3+ {[%clk 0:00:04]} 35. Kc2 {[%clk 0:01:50]}  Bd4 {[%clk 0:00:04]} 36. Rab1 {[%clk 0:01:48]}  Qc3# {[%clk 0:00:04]} 0-1


[Site "https://www.chess.com"]

[Event "Titled Tuesday Blitz August 09 Early 2022"]
[White "Papasimakopoulos, Alexandros"]
[Black "Avinash, Ramesh"]
[WhiteFideId "4244125"]
[BlackFideId "45018340"]
[WhiteElo "2693"]
[BlackElo "2799"]
[Result "0-1"]
[Round "08"]
[TimeControl "180+1"]
[Date "2022.08.09"]
[WhiteClock "0:01:06"]
[BlackClock "0:00:45"]

1. d4 {[%clk 0:03:00]}  Nf6 {[%clk 0:02:57]} 2. c4 {[%clk 0:03:01]}  e6 {[%clk 0:02:58]} 3. Nc3 {[%clk 0:03:01]}  d5 {[%clk 0:02:58]} 4. cxd5 {[%clk 0:03:01]}  exd5 {[%clk 0:02:58]} 5. Bg5 {[%clk 0:03:02]}  c6 {[%clk 0:02:58]} 6. e3 {[%clk 0:03:01]}  Be7 {[%clk 0:02:59]} 7. Bd3 {[%clk 0:03:01]}  Nbd7 {[%clk 0:03:00]} 8. Qc2 {[%clk 0:03:01]}  h6 {[%clk 0:03:00]} 9. Bh4 {[%clk 0:03:01]}  Nh5 {[%clk 0:03:01]} 10. Bxe7 {[%clk 0:03:01]}  Qxe7 {[%clk 0:03:01]} 11. O-O-O {[%clk 0:03:01]}  Nb6 {[%clk 0:02:56]} 12. Kb1 {[%clk 0:02:59]}  Be6 {[%clk 0:02:55]} 13. Nf3 {[%clk 0:02:58]}  O-O-O {[%clk 0:02:55]} 14. Na4 {[%clk 0:02:58]}  Nxa4 {[%clk 0:02:54]} 15. Qxa4 {[%clk 0:02:59]}  Kb8 {[%clk 0:02:55]} 16. Rc1 {[%clk 0:03:00]}  Nf6 {[%clk 0:02:15]} 17. Rc3 {[%clk 0:02:39]}  Ne4 {[%clk 0:02:14]} 18. Ra3 {[%clk 0:02:24]}  b5 {[%clk 0:02:14]} 19. Qc2 {[%clk 0:02:22]}  Rc8 {[%clk 0:02:07]} 20. Ne5 {[%clk 0:02:14]}  Qb7 {[%clk 0:01:56]} 21. Bxe4 {[%clk 0:02:06]}  dxe4 {[%clk 0:01:55]} 22. Qxe4 {[%clk 0:02:05]}  c5 {[%clk 0:01:54]} 23. Qxb7+ {[%clk 0:02:00]}  Kxb7 {[%clk 0:01:54]} 24. Rc3 {[%clk 0:02:00]}  cxd4 {[%clk 0:01:49]} 25. exd4 {[%clk 0:02:00]}  b4 {[%clk 0:01:48]} 26. Rc5 {[%clk 0:01:50]}  Rxc5 {[%clk 0:01:43]} 27. dxc5 {[%clk 0:01:51]}  Rd8 {[%clk 0:01:41]} 28. Kc2 {[%clk 0:01:44]}  Rd5 {[%clk 0:01:38]} 29. Nd3 {[%clk 0:01:42]}  Bf5 {[%clk 0:01:37]} 30. Rd1 {[%clk 0:01:43]}  Rxc5+ {[%clk 0:01:23]} 31. Kb3 {[%clk 0:01:43]}  Rd5 {[%clk 0:01:21]} 32. Kc4 {[%clk 0:01:43]}  Be6 {[%clk 0:01:03]} 33. Nc5+ {[%clk 0:01:37]}  Kc6 {[%clk 0:01:03]} 34. Rxd5 {[%clk 0:01:28]}  Bxd5+ {[%clk 0:01:02]} 35. Kxb4 {[%clk 0:01:29]}  a5+ {[%clk 0:01:01]} 36. Kxa5 {[%clk 0:01:28]}  Kxc5 {[%clk 0:01:02]} 37. b4+ {[%clk 0:01:26]}  Kc6 {[%clk 0:00:59]} 38. a4 {[%clk 0:01:18]}  Bxg2 {[%clk 0:00:58]} 39. b5+ {[%clk 0:01:19]}  Kb7 {[%clk 0:00:56]} 40. Kb4 {[%clk 0:01:19]}  f5 {[%clk 0:00:53]} 41. Kc5 {[%clk 0:01:19]}  g5 {[%clk 0:00:51]} 42. Kd4 {[%clk 0:01:14]}  Kb6 {[%clk 0:00:49]} 43. Ke5 {[%clk 0:01:13]}  Be4 {[%clk 0:00:47]} 44. Kf6 {[%clk 0:01:09]}  g4 {[%clk 0:00:45]} 45. Kg6 {[%clk 0:01:07]}  Ka5 {[%clk 0:00:44]} 46. Kxh6 {[%clk 0:01:07]}  Kxa4 {[%clk 0:00:44]} 47. b6 {[%clk 0:01:06]}  Kb5 {[%clk 0:00:45]} 0-1


[Site "https://www.chess.com"]

[Event "Titled Tuesday Blitz August 09 Early 2022"]
[White "Pinero Rodriguez, Carlos Jose"]
[Black "Martin Barcelo, Carles"]
[WhiteFideId "3901726"]
[BlackFideId "24561444"]
[WhiteElo "2053"]
[BlackElo "1922"]
[Result "1-0"]
[Round "08"]
[TimeControl "180+1"]
[Date "2022.08.09"]
[WhiteClock "0:00:35"]
[BlackClock "0:00:06"]

1. e4 {[%clk 0:03:00]}  d5 {[%clk 0:02:58]} 2. exd5 {[%clk 0:03:00]}  Qxd5 {[%clk 0:02:59]} 3. Nc3 {[%clk 0:03:00]}  Qd8 {[%clk 0:02:58]} 4. g3 {[%clk 0:02:59]}  c6 {[%clk 0:02:49]} 5. Bg2 {[%clk 0:02:59]}  Nf6 {[%clk 0:02:49]} 6. Nge2 {[%clk 0:02:59]}  Bf5 {[%clk 0:02:49]} 7. O-O {[%clk 0:02:59]}  e6 {[%clk 0:02:49]} 8. d3 {[%clk 0:03:00]}  Be7 {[%clk 0:02:48]} 9. Be3 {[%clk 0:03:00]}  O-O {[%clk 0:02:48]} 10. Re1 {[%clk 0:03:00]}  Nd5 {[%clk 0:02:43]} 11. Nxd5 {[%clk 0:02:59]}  exd5 {[%clk 0:02:39]} 12. Bd4 {[%clk 0:02:59]}  Nd7 {[%clk 0:02:36]} 13. a4 {[%clk 0:02:52]}  a5 {[%clk 0:02:33]} 14. Nf4 {[%clk 0:02:38]}  Bf6 {[%clk 0:02:30]} 15. Bxf6 {[%clk 0:02:38]}  Qxf6 {[%clk 0:02:29]} 16. c3 {[%clk 0:02:38]}  Rfe8 {[%clk 0:02:29]} 17. d4 {[%clk 0:02:37]}  h6 {[%clk 0:02:27]} 18. Qd2 {[%clk 0:02:36]}  Qd6 {[%clk 0:02:25]} 19. Rxe8+ {[%clk 0:02:35]}  Rxe8 {[%clk 0:02:26]} 20. Re1 {[%clk 0:02:34]}  Re7 {[%clk 0:02:24]} 21. Rxe7 {[%clk 0:02:33]}  Qxe7 {[%clk 0:02:25]} 22. Qe3 {[%clk 0:02:33]}  Qxe3 {[%clk 0:02:25]} 23. fxe3 {[%clk 0:02:34]}  Nb6 {[%clk 0:02:22]} 24. b4 {[%clk 0:02:17]}  axb4 {[%clk 0:02:18]} 25. cxb4 {[%clk 0:02:15]}  Nxa4 {[%clk 0:02:15]} 26. b5 {[%clk 0:02:15]}  Nc3 {[%clk 0:02:02]} 27. bxc6 {[%clk 0:02:13]}  bxc6 {[%clk 0:02:03]} 28. Kf2 {[%clk 0:02:08]}  g5 {[%clk 0:01:40]} 29. Ne2 {[%clk 0:02:04]}  Nxe2 {[%clk 0:01:34]} 30. Kxe2 {[%clk 0:02:03]}  Kf8 {[%clk 0:01:18]} 31. Kd2 {[%clk 0:02:03]}  Ke7 {[%clk 0:01:18]} 32. Kc3 {[%clk 0:02:04]}  Kd6 {[%clk 0:01:19]} 33. Kb4 {[%clk 0:02:04]}  Bd3 {[%clk 0:01:15]} 34. Bf3 {[%clk 0:02:02]}  f5 {[%clk 0:01:14]} 35. Bh5 {[%clk 0:02:00]}  Be4 {[%clk 0:01:14]} 36. Be2 {[%clk 0:01:58]}  Bc2 {[%clk 0:01:13]} 37. Bh5 {[%clk 0:01:58]}  Bd3 {[%clk 0:01:13]} 38. Bf3 {[%clk 0:01:56]}  Bb5 {[%clk 0:01:12]} 39. Bh5 {[%clk 0:01:55]}  Ke7 {[%clk 0:00:59]} 40. Kc5 {[%clk 0:01:53]}  Ba4 {[%clk 0:01:00]} 41. Be2 {[%clk 0:01:38]}  Ke6 {[%clk 0:00:44]} 42. Ba6 {[%clk 0:01:34]}  Kd7 {[%clk 0:00:26]} 43. Bd3 {[%clk 0:01:32]}  Ke6 {[%clk 0:00:24]} 44. Ba6 {[%clk 0:01:32]}  h5 {[%clk 0:00:20]} 45. Bc8+ {[%clk 0:01:27]}  Kf6 {[%clk 0:00:08]} 46. Bd7 {[%clk 0:01:27]}  Bc2 {[%clk 0:00:02]} 47. Bxc6 {[%clk 0:01:25]}  f4 {[%clk 0:00:03]} 48. exf4 {[%clk 0:01:25]}  gxf4 {[%clk 0:00:04]} 49. gxf4 {[%clk 0:01:25]}  Kf5 {[%clk 0:00:04]} 50. Bxd5 {[%clk 0:01:25]}  Kxf4 {[%clk 0:00:05]} 51. Bf7 {[%clk 0:01:21]}  Be4 {[%clk 0:00:05]} 52. Bxh5 {[%clk 0:01:19]}  Kg5 {[%clk 0:00:05]} 53. Be8 {[%clk 0:01:18]}  Kh6 {[%clk 0:00:05]} 54. Bc6 {[%clk 0:01:18]}  Bf5 {[%clk 0:00:04]} 55. Kd6 {[%clk 0:01:08]}  Kg7 {[%clk 0:00:04]} 56. Ke5 {[%clk 0:01:08]}  Bc2 {[%clk 0:00:04]} 57. Kf4 {[%clk 0:01:07]}  Bb3 {[%clk 0:00:04]} 58. Kg5 {[%clk 0:01:07]}  Bc4 {[%clk 0:00:04]} 59. h4 {[%clk 0:01:06]}  Bb3 {[%clk 0:00:04]} 60. Kf5 {[%clk 0:01:02]}  Bc4 {[%clk 0:00:05]} 61. Ke5 {[%clk 0:01:02]}  Bb3 {[%clk 0:00:05]} 62. Bd5 {[%clk 0:01:02]}  Bd1 {[%clk 0:00:06]} 63. Be6 {[%clk 0:01:01]}  Bf3 {[%clk 0:00:06]} 64. Kf4 {[%clk 0:00:57]}  Bb7 {[%clk 0:00:06]} 65. Kg5 {[%clk 0:00:56]}  Bf3 {[%clk 0:00:06]} 66. h5 {[%clk 0:00:56]}  Bg2 {[%clk 0:00:05]} 67. h6+ {[%clk 0:00:54]}  Kh8 {[%clk 0:00:06]} 68. Kg6 {[%clk 0:00:49]}  Bc6 {[%clk 0:00:06]} 69. Kf6 {[%clk 0:00:48]}  Be4 {[%clk 0:00:06]} 70. Bf5 {[%clk 0:00:48]}  Bd5 {[%clk 0:00:05]} 71. Ke5 {[%clk 0:00:47]}  Bb3 {[%clk 0:00:05]} 72. Be6 {[%clk 0:00:47]}  Bd1 {[%clk 0:00:04]} 73. d5 {[%clk 0:00:46]}  Bf3 {[%clk 0:00:04]} 74. d6 {[%clk 0:00:46]}  Bc6 {[%clk 0:00:05]} 75. Kf6 {[%clk 0:00:44]}  Bb5 {[%clk 0:00:05]} 76. Ke7 {[%clk 0:00:36]}  Bc6 {[%clk 0:00:06]} 77. Bd7 {[%clk 0:00:36]}  Bd5 {[%clk 0:00:06]} 78. Bb5 {[%clk 0:00:35]} 1-0


[Site "https://www.chess.com"]

[Event "Titled Tuesday Blitz August 09 Early 2022"]
[White "Pulpan, Jakub"]
[Black "Siva Mahadevan"]
[WhiteFideId "302759"]
[BlackFideId "25043153"]
[WhiteElo "2679"]
[BlackElo "2764"]
[Result "1-0"]
[Round "08"]
[TimeControl "180+1"]
[Date "2022.08.09"]
[WhiteClock "0:00:24"]
[BlackClock "0:00:04"]

1. Nf3 {[%clk 0:03:00]}  Nf6 {[%clk 0:02:58]} 2. b3 {[%clk 0:02:59]}  g6 {[%clk 0:02:59]} 3. Bb2 {[%clk 0:02:59]}  Bg7 {[%clk 0:02:59]} 4. g3 {[%clk 0:03:00]}  O-O {[%clk 0:02:59]} 5. Bg2 {[%clk 0:03:01]}  d6 {[%clk 0:03:00]} 6. d4 {[%clk 0:03:01]}  e5 {[%clk 0:03:00]} 7. dxe5 {[%clk 0:03:02]}  Nfd7 {[%clk 0:03:00]} 8. O-O {[%clk 0:03:01]}  Nc6 {[%clk 0:03:00]} 9. Nbd2 {[%clk 0:02:58]}  dxe5 {[%clk 0:02:58]} 10. e4 {[%clk 0:02:58]}  b6 {[%clk 0:02:40]} 11. Re1 {[%clk 0:02:55]}  a5 {[%clk 0:02:36]} 12. a4 {[%clk 0:02:55]}  Ba6 {[%clk 0:02:36]} 13. Bf1 {[%clk 0:02:55]}  Qc8 {[%clk 0:02:35]} 14. Bb5 {[%clk 0:02:49]}  Nb4 {[%clk 0:02:17]} 15. Ba3 {[%clk 0:02:40]}  Rd8 {[%clk 0:02:16]} 16. Bxb4 {[%clk 0:02:36]}  axb4 {[%clk 0:02:16]} 17. Bxa6 {[%clk 0:02:30]}  Qxa6 {[%clk 0:02:15]} 18. Nc4 {[%clk 0:02:31]}  Nc5 {[%clk 0:01:55]} 19. Qe2 {[%clk 0:02:30]}  Ne6 {[%clk 0:01:36]} 20. Rad1 {[%clk 0:02:21]}  f6 {[%clk 0:01:30]} 21. Rd5 {[%clk 0:02:18]}  Rxd5 {[%clk 0:01:22]} 22. exd5 {[%clk 0:02:17]}  Nc5 {[%clk 0:01:22]} 23. Qd2 {[%clk 0:02:15]}  Nxa4 {[%clk 0:01:19]} 24. d6 {[%clk 0:02:12]}  c6 {[%clk 0:00:28]} 25. Ra1 {[%clk 0:01:31]}  b5 {[%clk 0:00:28]} 26. Nb2 {[%clk 0:01:24]}  e4 {[%clk 0:00:23]} 27. Nd4 {[%clk 0:01:18]}  f5 {[%clk 0:00:24]} 28. d7 {[%clk 0:01:09]}  Qb6 {[%clk 0:00:18]} 29. Nxc6 {[%clk 0:00:50]}  Bxb2 {[%clk 0:00:18]} 30. Rd1 {[%clk 0:00:49]}  Nc3 {[%clk 0:00:15]} 31. Qd6 {[%clk 0:00:37]}  Nxd1 {[%clk 0:00:09]} 32. Ne7+ {[%clk 0:00:34]}  Kf7 {[%clk 0:00:10]} 33. Qxb6 {[%clk 0:00:32]}  Kxe7 {[%clk 0:00:11]} 34. Qc5+ {[%clk 0:00:32]}  Kxd7 {[%clk 0:00:09]} 35. Kg2 {[%clk 0:00:32]}  Nc3 {[%clk 0:00:06]} 36. Qxb4 {[%clk 0:00:32]}  Ra6 {[%clk 0:00:05]} 37. Qd4+ {[%clk 0:00:32]}  Rd6 {[%clk 0:00:05]} 38. Qg7+ {[%clk 0:00:32]}  Kc6 {[%clk 0:00:06]} 39. Qxh7 {[%clk 0:00:32]}  Nd1 {[%clk 0:00:06]} 40. Qf7 {[%clk 0:00:31]}  e3 {[%clk 0:00:06]} 41. fxe3 {[%clk 0:00:30]}  Nxe3+ {[%clk 0:00:06]} 42. Kf3 {[%clk 0:00:30]}  Nxc2 {[%clk 0:00:07]} 43. Qe8+ {[%clk 0:00:31]}  Kb6 {[%clk 0:00:06]} 44. Qb8+ {[%clk 0:00:31]}  Kc5 {[%clk 0:00:07]} 45. Qc7+ {[%clk 0:00:29]}  Rc6 {[%clk 0:00:08]} 46. Qe7+ {[%clk 0:00:30]}  Kd5 {[%clk 0:00:08]} 47. Qd7+ {[%clk 0:00:28]}  Rd6 {[%clk 0:00:08]} 48. Qxb5+ {[%clk 0:00:27]}  Ke6 {[%clk 0:00:07]} 49. Qc4+ {[%clk 0:00:28]}  Kf6 {[%clk 0:00:07]} 50. Qxc2 {[%clk 0:00:28]}  Be5 {[%clk 0:00:08]} 51. Qc5 {[%clk 0:00:28]}  g5 {[%clk 0:00:08]} 52. b4 {[%clk 0:00:28]}  g4+ {[%clk 0:00:07]} 53. Ke2 {[%clk 0:00:28]}  Re6 {[%clk 0:00:07]} 54. Kd3 {[%clk 0:00:29]}  Rd6+ {[%clk 0:00:08]} 55. Kc4 {[%clk 0:00:28]}  Rd2 {[%clk 0:00:08]} 56. Qf8+ {[%clk 0:00:29]}  Kg6 {[%clk 0:00:07]} 57. b5 {[%clk 0:00:29]}  Rc2+ {[%clk 0:00:07]} 58. Kd5 {[%clk 0:00:29]}  Bf6 {[%clk 0:00:07]} 59. Qg8+ {[%clk 0:00:27]}  Kh6 {[%clk 0:00:07]} 60. Ke6 {[%clk 0:00:27]}  Ba1 {[%clk 0:00:03]} 61. Qf8+ {[%clk 0:00:24]}  Bg7 {[%clk 0:00:03]} 62. Qxf5 {[%clk 0:00:25]}  Rxh2 {[%clk 0:00:03]} 63. b6 {[%clk 0:00:23]}  Re2+ {[%clk 0:00:03]} 64. Kd7 {[%clk 0:00:23]}  Rd2+ {[%clk 0:00:04]} 65. Kc8 {[%clk 0:00:24]}  Rc2+ {[%clk 0:00:04]} 66. Qxc2 {[%clk 0:00:24]} 1-0


[Site "https://www.chess.com"]